bitfinex/quotes_ETHUSD_20250519
["timestamp","ask_amount","ask_price","bid_price","bid_amount"]
[1747631357566,4.21574565,2374.9,2374.8,10.56769201]
[1747631357801,4.21574565,2374.9,2374.8,10.8355106]
[1747631357969,0.005,2374.9,2374.8,10.8355106]
[1747631358611,4.2157036,2374.9,2374.8,10.8355106]
[1747631358978,0.005,2374.9,2374.8,10.8355106]
[1747631362396,0.005,2374.9,2374.8,16.5953334]
[1747631362608,0.005,2374.9,2374.8,2.37645249]
[1747631362911,4.2157036,2374.9,2374.8,10.8345106]
[1747631363333,4.2157036,2374.9,2374.8,0.8275106]
[1747631363511,4.2157036,2374.9,2374.8,10.8345106]
[1747631363830,4.2157036,2374.9,2374.8,10.51098652]
[1747631365633,4.2157036,2374.9,2374.8,0.50398652]
[1747631365930,6.67802678,2374.9,2374.8,0.50398652]
[1747631366506,6.67802678,2374.9,2374.8,0.26781859]
[1747631366904,4.21105823,2374.7,2374.6,0.33540863]
[1747631369306,4.21105823,2374.7,2374.4,10.4487342]
[1747631369307,4.21135627,2374.6,2374.4,10.006]
[1747631369639,4.21141292,2374.5,2374.4,10.006]
[1747631371201,4.2113296,2374.6,2374.4,10.006]
[1747631371402,4.21141292,2374.5,2374.4,10.006]
[1747631371798,4.2109346,2374.8,2374.4,10.007]
[1747631372032,4.21141292,2374.5,2374.4,10.007]
[1747631373815,1.159,2374.9,2374.1,18.50096002]
[1747631374141,4.21088091,2374.8,2374.1,18.192]
[1747631374308,1.159,2374.9,2374.2,10.242635]
[1747631374505,4.21165596,2374.4,2374.2,10.242635]
[1747631374904,4.21127635,2374.6,2374.2,0.235635]
[1747631375104,4.21088091,2374.8,2374.1,18.50467496]
[1747631375336,1.0849,2375.0,2374.2,10.007]
[1747631375337,4.21185521,2374.3,2374.2,10.007]
[1747631375641,4.21176767,2374.3,2374.2,10.007]
[1747631375830,4.21167968,2374.4,2374.2,10.27549191]
[1747631376031,4.21167968,2374.4,2374.2,10.51121314]
[1747631376345,4.21176767,2374.3,2374.2,10.51121314]
[1747631376505,4.21176767,2374.3,2374.2,0.50421314]
[1747631376902,5.28736767,2374.3,2374.2,0.50421314]
[1747631377101,5.28736767,2374.3,2374.2,0.26849191]
[1747631377102,6.15337194,2374.3,2374.2,0.26849191]
[1747631377342,5.28736767,2374.3,2374.2,0.26849191]
[1747631377714,4.21194507,2374.2,2374.1,28.199]
[1747631377915,4.21194507,2374.2,2374.1,18.192]
[1747631378857,9.99,2374.6,2374.1,18.192]
[1747631378858,1.0967,2374.6,2374.1,18.192]
[1747631379151,4.21163112,2374.4,2374.1,19.2883]
[1747631379456,1.0967,2374.9,2374.2,0.23578722]
[1747631379457,4.21150713,2374.5,2374.2,0.23578722]
[1747631379835,4.21160069,2374.4,2374.3,0.23578722]
[1747631380031,1.0967,2374.9,2374.3,0.23578722]
[1747631380231,4.21093764,2374.8,2374.3,0.23578722]
[1747631380452,4.2114973,2374.5,2374.3,0.23578722]
[1747631380654,4.2114973,2374.5,2374.4,0.23578722]
[1747631380655,4.21141292,2374.5,2374.4,0.23578722]
[1747631381035,4.21141292,2374.5,2374.4,10.24278722]
[1747631381437,4.21141292,2374.5,2374.4,10.51150087]
[1747631381830,4.21141292,2374.5,2374.4,0.50450087]
[1747631382030,4.21141292,2374.5,2374.4,10.51150087]
[1747631382333,4.21126648,2374.6,2374.4,10.27571365]
[1747631382532,4.21126648,2374.6,2374.4,11.30328502]
[1747631383263,4.21194507,2374.2,2374.1,18.52740863]
[1747631383466,4.21194507,2374.2,2374.1,28.53440863]
[1747631383969,4.21194507,2374.2,2374.1,18.52740863]
[1747631383970,3.33126325,2374.2,2374.1,18.52740863]
[1747631384269,4.21183866,2374.3,2374.1,28.7703061]
[1747631384432,4.21194507,2374.2,2374.1,28.7703061]
[1747631384632,4.21186292,2374.3,2374.1,29.03896726]
[1747631385238,4.21149544,2374.5,2374.1,29.03896726]
[1747631385464,4.21105823,2374.7,2374.2,0.23589747]
[1747631385781,5.38186767,2374.3,2374.2,0.23589747]
[1747631386067,6.75831382,2374.3,2374.2,0.23589747]
[1747631386362,6.71583957,2374.3,2374.2,0.23589747]
[1747631386565,4.21194507,2374.2,2374.1,0.60406979]
[1747631387041,4.21229991,2374.0,2373.9,0.91339532]
[1747631388485,5.33289991,2374.0,2373.9,0.91339532]
[1747631388673,6.70859962,2374.0,2373.9,0.91339532]
[1747631392090,7.25859962,2374.0,2373.9,0.91339532]
[1747631393107,15.25859962,2374.0,2373.9,0.91339532]
[1747631395897,25.23259962,2374.0,2373.9,0.91339532]
[1747631397298,25.54771849,2374.0,2373.9,0.91339532]
[1747631398408,15.57371849,2374.0,2373.9,0.91339532]
[1747631398571,25.54571849,2374.0,2373.9,0.91339532]
[1747631399600,35.61571849,2374.0,2373.9,0.91339532]
[1747631399802,25.64371849,2374.0,2373.9,0.91339532]
[1747631399993,35.61471849,2374.0,2373.9,0.91339532]
[1747631400308,33.37389991,2374.0,2373.9,0.91339532]
[1747631400505,25.37289991,2374.0,2373.9,0.91339532]
[1747631400727,33.37289991,2374.0,2373.9,0.91339532]
[1747631400930,34.23204472,2374.0,2373.9,0.91339532]
[1747631401223,24.26204472,2374.0,2373.9,0.91339532]
[1747631401425,0.55,2373.5,2373.2,0.97882231]
[1747631401600,17.66197214,2373.3,2373.2,0.97882231]
[1747631402122,23.88474232,2373.3,2373.2,0.97882231]
[1747631402512,13.91574232,2373.3,2373.2,0.97882231]
[1747631402717,23.88374232,2373.3,2373.2,0.97882231]
[1747631402915,13.36574232,2373.3,2373.2,0.97882231]
[1747631403116,15.33374232,2373.3,2373.2,0.97882231]
[1747631403323,5.36574232,2373.3,2373.2,0.97882231]
[1747631403628,15.33274232,2373.3,2373.2,0.97882231]
[1747631403830,5.36574232,2373.3,2373.2,0.97882231]
[1747631403989,15.33274232,2373.3,2373.2,0.97882231]
[1747631404393,15.88274232,2373.3,2373.2,0.97882231]
[1747631404594,27.26567176,2373.3,2373.2,0.97882231]
[1747631404838,31.01190158,2373.3,2373.2,0.97882231]
[1747631405036,9.29867176,2373.3,2373.2,0.97882231]
[1747631405328,4.21354232,2373.3,2373.2,0.97882231]
[1747631405532,4.76354232,2373.3,2373.2,0.97882231]
[1747631405824,16.50977214,2373.3,2373.2,0.97882231]
[1747631406030,17.57367214,2373.3,2373.2,0.97882231]
[1747631406235,21.17029456,2373.3,2373.2,0.97882231]
[1747631406926,31.24029456,2373.3,2373.2,0.97882231]
[1747631407695,33.31144232,2373.3,2373.2,0.97882231]
[1747631407919,24.24754232,2373.3,2373.2,0.97882231]
[1747631408611,32.79754232,2373.3,2373.2,0.97882231]
[1747631409522,32.79654232,2373.3,2373.2,0.97882231]
[1747631412594,36.54277214,2373.3,2373.2,0.97882231]
[1747631412800,41.74456484,2373.3,2373.2,0.97882231]
[1747631413007,41.74056484,2373.3,2373.2,0.97882231]
[1747631413233,28.34073502,2373.3,2373.2,0.97882231]
[1747631414423,28.33973502,2373.3,2373.2,0.97882231]
[1747631414732,36.88973502,2373.3,2373.2,0.97882231]
[1747631415431,4.21354232,2373.3,2373.2,0.97882231]
[1747631415637,14.17054232,2373.3,2373.2,0.97882231]
[1747631416635,4.21354232,2373.3,2373.2,0.97882231]
[1747631417907,4.21354232,2373.3,2373.2,1.21471592]
[1747631418317,4.21354232,2373.3,2373.2,1.48325172]
[1747631419101,4.21354232,2373.3,2373.2,1.24735811]
[1747631419502,4.21354232,2373.3,2373.2,0.97882231]
[1747631422833,17.8035443,2374.0,2373.2,2.16502231]
[1747631423014,4.21310095,2373.6,2373.3,0.50499144]
[1747631423232,10.07,2374.6,2373.5,1.1734]
[1747631423438,4.21258736,2373.9,2373.6,0.04212711]
[1747631423734,14.15823557,2374.6,2373.5,1.1734]
[1747631423735,4.21300977,2373.6,2373.5,1.1734]
[1747631423944,4.25548402,2373.6,2373.5,10.19015079]
[1747631424274,4.21300977,2373.6,2373.5,10.19015079]
[1747631425371,4.21300977,2373.6,2373.5,9.954]
[1747631428474,4.21300977,2373.6,2373.5,10.18986611]
[1747631428979,4.21300977,2373.6,2373.5,10.4583373]
[1747631429268,4.21272623,2373.8,2373.5,10.4583373]
[1747631429475,4.21284886,2373.7,2373.6,1.1635]
[1747631430043,10.07,2374.1,2373.6,2.56154984]
[1747631430371,10.07,2374.1,2373.6,2.60367305]
[1747631430564,4.21259506,2373.9,2373.6,2.56154984]
[1747631430760,4.21276564,2373.8,2373.7,10.22147119]
[1747631430966,4.21255034,2373.9,2373.7,10.4573373]
[1747631431161,4.21255034,2373.9,2373.7,12.7293394]
[1747631431364,4.21265481,2373.8,2373.7,12.7293394]
[1747631431554,4.21265481,2373.8,2373.7,10.22147119]
[1747631432275,4.21265481,2373.8,2373.7,10.45705952]
[1747631432878,4.21257065,2373.9,2373.7,10.45705952]
[1747631433780,4.21265481,2373.8,2373.7,10.45705952]
[1747631433974,4.21265481,2373.8,2373.7,10.18858833]
[1747631434374,4.21265481,2373.8,2373.7,0.23558833]
[1747631434574,4.21265481,2373.8,2373.7,10.18658833]
[1747631435367,14.1404206,2374.5,2373.7,11.32159716]
[1747631435568,4.21159029,2374.4,2373.7,11.32159716]
[1747631435881,4.21247735,2373.9,2373.8,0.23558833]
[1747631436095,9.929,2374.5,2373.8,0.23558833]
[1747631436253,4.21217121,2374.1,2373.8,0.23558833]
[1747631436450,15.45116476,2374.8,2373.9,0.23558833]
[1747631436650,4.21140792,2374.6,2374.0,19.3049]
[1747631436891,4.21142845,2374.5,2374.0,23.51711059]
[1747631437091,14.28093871,2374.8,2374.1,0.23558833]
[1747631437387,4.21155725,2374.5,2374.2,9.951]
[1747631437590,4.21160863,2374.4,2374.2,9.951]
[1747631437795,4.21126429,2374.6,2374.2,9.951]
[1747631437956,4.21126429,2374.6,2374.3,1.1774]
[1747631438156,4.21149035,2374.5,2374.3,1.1774]
[1747631438361,14.13433194,2375.2,2374.3,2.59084785]
[1747631438362,4.21159029,2374.4,2374.3,2.59084785]
[1747631438660,4.21130248,2374.6,2374.3,2.59084785]
[1747631439083,4.21143332,2374.5,2374.3,2.59084785]
[1747631439271,4.21132377,2374.6,2374.3,2.59084785]
[1747631439580,4.211413,2374.5,2374.3,2.59084785]
[1747631440177,14.13333194,2375.2,2374.3,2.59084785]
[1747631440500,4.21159029,2374.4,2374.3,1.1774]
[1747631440989,4.21149859,2374.5,2374.3,1.1774]
[1747631441293,4.21127469,2374.6,2374.3,1.1774]
[1747631441486,4.21144863,2374.5,2374.3,1.1774]
[1747631441884,4.21130239,2374.6,2374.3,1.1774]
[1747631442200,4.21130239,2374.6,2374.3,2.74233067]
[1747631443003,4.21142217,2374.5,2374.3,2.74233067]
[1747631443298,4.21141292,2374.5,2374.4,9.949]
[1747631443469,4.21159029,2374.4,2374.3,1.1774]
[1747631443799,4.21159029,2374.4,2374.3,11.1254]
[1747631443994,4.21141292,2374.5,2374.3,11.1254]
[1747631443995,4.21154919,2374.5,2374.3,11.1254]
[1747631444195,4.21132291,2374.6,2374.3,11.1254]
[1747631445085,4.21099064,2374.8,2374.3,16.9017788]
[1747631445262,4.2109804,2374.8,2374.3,16.9017788]
[1747631445696,4.2109804,2374.8,2374.4,0.23493617]
[1747631445901,4.21106554,2374.7,2374.4,0.23493617]
[1747631446197,4.21096335,2374.8,2374.4,0.23493617]
[1747631446369,4.21096335,2374.8,2374.4,1.9486067]
[1747631446570,4.21096335,2374.8,2374.4,1.71367053]
[1747631447198,4.20999452,2375.3,2374.6,5.39841912]
[1747631447401,5.39101463,2375.6,2374.6,1.1872]
[1747631447585,4.21082708,2374.9,2374.7,9.948]
[1747631447786,4.21061249,2375.0,2374.7,9.948]
[1747631447986,1.1815,2375.6,2374.7,9.948]
[1747631448186,4.21020726,2375.2,2374.7,14.15896306]
[1747631448403,4.2106123,2375.0,2374.6,1.1872]
[1747631448602,4.21080503,2374.9,2374.8,0.23490194]
[1747631448764,4.21036185,2375.1,2374.8,10.14190194]
[1747631448966,4.2107036,2374.9,2374.8,10.14190194]
[1747631449492,4.2107036,2374.9,2374.8,9.907]
[1747631450567,4.21093459,2374.8,2374.6,1.50077725]
[1747631450770,4.21093459,2374.8,2374.7,9.906]
[1747631451216,4.21105823,2374.7,2374.6,1.1872]
[1747631451395,4.21034903,2375.1,2374.6,9.906]
[1747631451699,4.21105823,2374.7,2374.6,9.906]
[1747631453774,18.57241968,2375.6,2374.6,11.0859]
[1747631453775,4.21055254,2375.0,2374.6,11.0859]
[1747631453969,4.21078902,2374.9,2374.6,11.0859]
[1747631454194,4.21044951,2375.1,2374.6,15.29713156]
[1747631454476,4.21006228,2375.3,2374.6,9.906]
[1747631454677,4.2101775,2375.2,2374.7,5.43443547]
[1747631454875,4.2101775,2375.2,2374.8,2.94465974]
[1747631455102,4.2102517,2375.2,2374.9,0.23509677]
[1747631455495,4.21009664,2375.3,2374.9,0.23509677]
[1747631455677,4.21009664,2375.3,2374.9,0.50290781]
[1747631455876,4.21017271,2375.2,2374.9,0.50290781]
[1747631456101,4.21017271,2375.2,2375.0,0.23509677]
[1747631456277,4.21008556,2375.3,2375.1,11.106]
[1747631456473,1.2308,2375.9,2375.1,11.106]
[1747631456696,4.21009301,2375.3,2375.1,11.106]
[1747631456884,5.4397588,2375.9,2375.1,11.106]
[1747631457072,4.21009085,2375.3,2375.1,11.106]
[1747631457276,1.2308,2375.9,2375.1,11.106]
[1747631457474,4.20877646,2376.0,2375.2,0.50298326]
[1747631457705,4.20959989,2375.6,2375.2,0.50298326]
[1747631458014,4.20947825,2375.6,2375.2,0.50298326]
[1747631458172,4.20947825,2375.6,2375.3,1.81709605]
[1747631459113,4.20947825,2375.6,2375.4,0.23517222]
[1747631459889,4.20947825,2375.6,2375.5,0.23517222]
[1747631460089,4.20934741,2375.7,2375.5,0.23517222]
[1747631460289,4.2405,2378.2,2375.5,0.23517222]
[1747631460290,4.20778253,2376.6,2375.7,1.1962]
[1747631460499,4.20846644,2376.2,2375.8,1.70343767]
[1747631460697,1.2294,2376.8,2375.9,18.181]
[1747631461007,4.2079621,2376.5,2376.0,5.43424687]
[1747631461211,4.20805434,2376.4,2376.1,9.904]
[1747631461401,0.04247425,2376.8,2376.0,1.54531232]
[1747631461594,4.20839996,2376.2,2376.1,10.13817222]
[1747631461997,4.20810398,2376.4,2376.1,10.13817222]
[1747631462200,4.20716058,2376.9,2376.1,10.13817222]
[1747631462401,4.20839996,2376.2,2376.0,1.2255]
[1747631462694,4.20822583,2376.3,2376.2,9.903]
[1747631463091,4.20774192,2376.6,2376.0,1.2255]
[1747631463092,4.20780828,2376.6,2376.0,1.2255]
[1747631463306,4.20855127,2376.2,2376.1,9.903]
[1747631463514,4.20824684,2376.3,2376.1,10.79120663]
[1747631463711,0.21975559,2377.0,2376.1,10.79120663]
[1747631464091,4.20574504,2377.7,2376.7,1.2162]
[1747631464289,4.20574504,2377.7,2376.8,28.081]
[1747631464290,4.20713788,2377.0,2376.8,28.081]
[1747631464589,4.20716058,2376.9,2376.8,28.081]
[1747631464821,4.20716058,2376.9,2376.8,18.44505508]
[1747631465022,4.20716058,2376.9,2376.8,29.92797891]
[1747631465208,4.20690822,2377.1,2376.8,29.92797891]
[1747631465419,4.20707485,2377.0,2376.8,29.92797891]
[1747631465736,4.20716058,2376.9,2376.8,20.02697891]
[1747631466038,1.2002,2377.7,2376.9,9.901]
[1747631466242,4.20648906,2377.3,2377.0,1.66135217]
[1747631466389,4.20629551,2377.4,2377.1,1.18046459]
[1747631466590,4.20662964,2377.2,2377.1,1.1384]
[1747631466890,4.2063574,2377.4,2377.1,11.0394]
[1747631467134,4.2065949,2377.3,2377.1,1.1384]
[1747631467341,4.20485459,2378.3,2377.3,1.2183]
[1747631467498,1.15757425,2378.2,2377.4,1.53258435]
[1747631467704,1.15757425,2378.2,2377.5,9.899]
[1747631467705,1.1151,2378.2,2377.5,9.899]
[1747631467902,4.20593501,2377.6,2377.3,1.2183]
[1747631468106,4.20569892,2377.8,2377.6,0.06226642]
[1747631468334,4.20574504,2377.7,2377.6,0.06226642]
[1747631468534,4.20574504,2377.7,2377.6,9.96126642]
[1747631469847,4.20563374,2377.8,2377.6,9.96126642]
[1747631470154,4.20574504,2377.7,2377.6,9.96126642]
[1747631470366,4.20540527,2377.9,2377.6,9.96126642]
[1747631470655,5.31997444,2378.2,2377.6,9.96126642]
[1747631470848,4.20574504,2377.7,2377.6,0.06226642]
[1747631471018,4.20574504,2377.7,2377.6,9.95926642]
[1747631471361,4.20566979,2377.8,2377.6,9.95926642]
[1747631471531,4.20574504,2377.7,2377.6,9.95926642]
[1747631473556,4.20574504,2377.7,2377.6,0.06226642]
[1747631473718,6.18287907,2377.7,2377.6,9.95826642]
[1747631473919,4.20574504,2377.7,2377.6,9.95826642]
[1747631474139,4.20567938,2377.8,2377.7,1.2283]
[1747631474326,4.20567938,2377.8,2377.6,9.95826642]
[1747631474327,4.20574504,2377.7,2377.6,0.06226642]
[1747631474762,4.20574504,2377.7,2377.6,9.95826642]
[1747631474947,4.20574504,2377.7,2377.6,0.06226642]
[1747631475146,6.45312957,2377.7,2377.6,0.06226642]
[1747631475531,7.66182957,2377.7,2377.6,0.06226642]
[1747631475732,17.51782957,2377.7,2377.6,0.06226642]
[1747631476556,26.06782957,2377.7,2377.6,0.06226642]
[1747631476757,15.66182957,2377.7,2377.6,0.06226642]
[1747631477130,16.21182957,2377.7,2377.6,0.06226642]
[1747631477564,4.20839996,2376.2,2376.1,0.4427342]
[1747631477766,4.20839996,2376.2,2376.1,10.65006624]
[1747631478439,4.20839996,2376.2,2376.1,10.20733204]
[1747631478623,4.2083038,2376.3,2376.1,10.20733204]
[1747631479262,5.34106177,2376.8,2376.1,10.20733204]
[1747631479263,1.1336,2376.8,2376.1,10.20733204]
[1747631479479,4.20805083,2376.4,2376.1,10.20733204]
[1747631479860,1.1592,2377.1,2376.1,13.16796524]
[1747631480163,4.20698359,2377.0,2376.2,1.1896]
[1747631480327,1.1592,2377.1,2376.2,1.1896]
[1747631480328,4.20800268,2376.5,2376.2,1.1896]
[1747631480930,4.20786871,2376.5,2376.2,1.1896]
[1747631481151,4.20809644,2376.4,2376.2,1.1896]
[1747631481530,1.1592,2377.1,2376.2,2.36044943]
[1747631481763,4.20770127,2376.6,2376.2,12.2699715]
[1747631482873,4.20698359,2377.0,2376.2,12.2699715]
[1747631483078,1.1592,2377.1,2376.3,9.854]
[1747631483279,4.20789226,2376.5,2376.3,9.854]
[1747631484479,4.20718893,2376.9,2376.2,2.4209715]
[1747631484685,4.20795574,2376.5,2376.4,9.854]
[1747631485035,4.20805758,2376.4,2376.2,1.25012207]
[1747631485379,4.20805758,2376.4,2376.3,9.854]
[1747631489569,4.20805758,2376.4,2376.3,10.12160443]
[1747631491356,4.20758464,2376.7,2376.3,10.12160443]
[1747631491588,4.20804578,2376.4,2376.3,10.35660972]
[1747631491990,4.20804578,2376.4,2376.3,10.08900529]
[1747631492660,4.20794524,2376.5,2376.3,10.08900529]
[1747631493260,4.20794524,2376.5,2376.3,9.854]
[1747631493461,4.20796982,2376.5,2376.3,9.854]
[1747631493687,4.20771683,2376.6,2376.3,9.854]
[1747631493885,4.20789369,2376.5,2376.3,9.854]
[1747631494076,4.2077738,2376.6,2376.4,1.45224083]
[1747631494273,4.20756325,2376.7,2376.4,1.45224083]
[1747631494274,4.20754692,2376.7,2376.4,1.45224083]
[1747631494461,4.20754692,2376.7,2376.4,3.00974952]
[1747631494698,4.20738247,2376.8,2376.4,3.00974952]
[1747631495004,4.20738247,2376.8,2376.5,0.50266599]
[1747631495368,4.20698359,2377.0,2376.5,0.50266599]
[1747631495704,4.20751462,2376.7,2376.6,10.09004083]
[1747631496197,4.84016634,2376.7,2376.6,9.855]
[1747631496616,4.20822286,2376.3,2376.2,0.39253533]
[1747631496769,4.20822286,2376.3,2376.2,10.24753533]
[1747631496973,4.20809814,2376.4,2376.2,10.24753533]
[1747631497189,4.20792261,2376.5,2376.2,10.24753533]
[1747631497375,4.20797528,2376.5,2376.2,10.24753533]
[1747631497578,4.20797528,2376.5,2376.3,0.23504349]
[1747631497774,4.20784505,2376.6,2376.3,0.23504349]
[1747631498010,4.20784202,2376.6,2376.4,1.1524]
[1747631498207,4.20786871,2376.5,2376.4,1.1524]
[1747631498615,4.20822286,2376.3,2376.2,0.06052207]
[1747631498773,4.20813018,2376.4,2376.2,9.91552207]
[1747631498968,4.20749985,2376.8,2376.2,9.91552207]
[1747631498969,4.20822286,2376.3,2376.2,9.91552207]
[1747631499292,4.2081288,2376.4,2376.2,10.18325601]
[1747631499907,4.20822286,2376.3,2376.2,10.18325601]
[1747631500205,4.20731358,2376.9,2376.2,10.18325601]
[1747631500363,1.22073136,2376.8,2376.2,10.41854907]
[1747631500566,4.20796377,2376.5,2376.2,10.41854907]
[1747631500793,4.20805359,2376.4,2376.2,10.41854907]
[1747631501011,4.20822286,2376.3,2376.2,0.56354907]
[1747631501222,4.20822286,2376.3,2376.2,9.91552207]
[1747631501514,4.20822286,2376.3,2376.2,0.06052207]
[1747631501720,4.20822286,2376.3,2376.2,0.2959492]
[1747631501928,4.20822286,2376.3,2376.2,10.1509492]
[1747631502220,4.20822286,2376.3,2376.2,10.09042713]
[1747631502986,4.20822286,2376.3,2376.2,10.35864076]
[1747631503424,5.04985625,2376.3,2376.2,0.50364076]
[1747631503592,6.2153305,2376.3,2376.2,0.50364076]
[1747631504126,24.24285625,2376.3,2376.2,0.50364076]
[1747631504282,24.79285625,2376.3,2376.2,0.26821363]
[1747631504699,25.10555865,2376.3,2376.2,0.26821363]
[1747631505120,24.79285625,2376.3,2376.2,0.26821363]
[1747631505703,5.93907708,2376.1,2376.0,0.33201326]
[1747631505917,4.21017177,2375.2,2375.1,0.33201326]
[1747631506419,4.21017177,2375.2,2375.1,10.18701326]
[1747631507908,4.21017177,2375.2,2375.1,10.18801326]
[1747631508219,4.21017177,2375.2,2375.1,0.33201326]
[1747631509410,4.21052631,2375.0,2374.9,9.814]
[1747631512636,1.1563,2375.0,2374.5,1.0953]
[1747631512794,4.21034903,2375.1,2374.6,9.816]
[1747631513195,4.21019312,2375.2,2374.7,4.21100636]
[1747631513436,14.2799263,2375.4,2374.6,9.816]
[1747631513437,4.21035861,2375.1,2374.6,9.816]
[1747631513638,4.21035861,2375.1,2374.6,4.21112086]
[1747631513837,4.21035861,2375.1,2374.7,9.816]
[1747631514156,14.27987572,2375.4,2374.7,14.02702275]
[1747631514311,1.1081,2375.6,2374.7,14.02702275]
[1747631514312,4.20999526,2375.3,2374.8,1.1393]
[1747631514515,4.20999675,2375.3,2374.9,0.23459629]
[1747631514740,4.21034903,2375.1,2374.9,0.23459629]
[1747631514938,4.21025983,2375.2,2375.0,9.816]
[1747631515317,4.21034903,2375.1,2374.8,1.1393]
[1747631515653,4.2107036,2374.9,2374.8,1.1393]
[1747631515817,4.2107036,2374.9,2374.5,1.1754]
[1747631516017,4.2107036,2374.9,2374.6,9.816]
[1747631516211,4.21057442,2375.0,2374.6,0.23464016]
[1747631516418,4.21057442,2375.0,2374.7,9.816]
[1747631517029,4.2100427,2375.3,2374.7,11.39294304]
[1747631517234,4.21036262,2375.1,2374.7,9.816]
[1747631517758,1.1767,2375.4,2374.7,9.816]
[1747631517938,4.20999203,2375.4,2374.8,5.40509568]
[1747631518138,4.21002332,2375.3,2374.9,1.52210957]
[1747631518649,0.04247425,2375.4,2374.8,1.1943]
[1747631518851,4.21034903,2375.1,2375.0,9.816]
[1747631519051,4.21044378,2375.1,2375.0,9.816]
[1747631519230,4.21023875,2375.2,2375.0,9.816]
[1747631519429,15.39454906,2375.7,2375.0,9.816]
[1747631519664,4.21014371,2375.3,2375.0,9.816]
[1747631519951,4.21017177,2375.2,2375.1,18.179]
[1747631520155,4.21017177,2375.2,2375.1,27.995]
[1747631520720,4.21017177,2375.2,2375.1,18.179]
[1747631520963,5.05219146,2375.2,2375.1,18.179]
[1747631521357,6.15379146,2375.2,2375.1,27.995]
[1747631522251,6.15379146,2375.2,2375.1,18.179]
[1747631523953,5.05219146,2375.2,2375.1,18.179]
[1747631524149,4.21007435,2375.3,2375.1,18.179]
[1747631524370,4.21017177,2375.2,2375.1,18.179]
[1747631525778,4.21012898,2375.3,2375.1,18.179]
[1747631526091,4.20972431,2375.5,2375.1,18.179]
[1747631526290,9.789,2375.9,2375.1,18.179]
[1747631526436,4.20984492,2375.4,2375.1,18.179]
[1747631526838,4.20984492,2375.4,2375.2,0.23487374]
[1747631527444,4.20984492,2375.4,2375.1,18.179]
[1747631527775,5.33400114,2376.0,2375.1,18.179]
[1747631527982,4.20973443,2375.5,2375.1,18.179]
[1747631528140,4.20982051,2375.4,2375.2,3.48787628]
[1747631528339,4.20982051,2375.4,2375.3,0.23506651]
[1747631529285,4.20972481,2375.5,2375.3,0.23506651]
[1747631529777,4.20972481,2375.5,2375.4,0.26733153]
[1747631530143,10.07,2376.1,2375.4,11.12073153]
[1747631530353,4.20946287,2375.6,2375.5,0.23506651]
[1747631530586,4.20946287,2375.6,2375.5,10.05106651]
[1747631531073,4.20946287,2375.6,2375.5,0.23506651]
[1747631531267,4.20946287,2375.6,2375.5,10.05106651]
[1747631531654,4.20946287,2375.6,2375.5,9.816]
[1747631532254,2.00318334,2376.1,2375.5,9.816]
[1747631532459,1.1202,2376.2,2375.6,0.04209438]
[1747631532460,4.20884718,2376.0,2375.6,0.04209438]
[1747631532660,4.20920309,2375.8,2375.7,1.0549]
[1747631532858,4.20920309,2375.8,2375.7,1.29051438]
[1747631533278,4.20920309,2375.8,2375.7,1.55856162]
[1747631533949,4.20920309,2375.8,2375.7,10.31966162]
[1747631534149,5.05101665,2375.8,2375.7,10.31966162]
[1747631534768,4.20920309,2375.8,2375.7,10.31966162]
[1747631535366,4.20882412,2376.0,2375.7,10.31966162]
[1747631535687,4.20898503,2375.9,2375.8,1.0556]
[1747631536157,4.20910851,2375.8,2375.7,0.50366162]
[1747631536360,4.20910851,2375.8,2375.7,10.31966162]
[1747631536755,4.20910851,2375.8,2375.7,0.50366162]
[1747631537162,4.20910851,2375.8,2375.7,10.31866162]
[1747631538592,4.20901697,2375.9,2375.7,10.31866162]
[1747631538770,4.20901697,2375.9,2375.7,11.48866911]
[1747631538977,4.20901697,2375.9,2375.7,10.31866162]
[1747631539157,4.20856416,2376.2,2375.7,10.31866162]
[1747631539497,4.20893135,2375.9,2375.8,9.765]
[1747631539715,4.20884115,2376.0,2375.8,10.26866162]
[1747631540304,4.20893135,2375.9,2375.8,0.26804724]
[1747631540474,4.20893135,2375.9,2375.8,10.03304724]
[1747631540877,4.20893135,2375.9,2375.8,0.26804724]
[1747631541077,4.20893135,2375.9,2375.8,10.03304724]
[1747631541279,11.139,2376.4,2375.8,10.03304724]
[1747631541476,4.20859252,2376.1,2375.8,10.03304724]
[1747631541685,4.20893135,2375.9,2375.8,0.26804724]
[1747631541885,4.20893135,2375.9,2375.8,10.03304724]
[1747631542405,4.20893135,2375.9,2375.8,10.26852512]
[1747631543585,4.20893135,2375.9,2375.8,0.50352512]
[1747631543786,5.05070292,2375.9,2375.8,0.50352512]
[1747631543984,5.05070292,2375.9,2375.8,10.26852512]
[1747631544206,4.20893135,2375.9,2375.8,10.03304724]
[1747631544809,4.20893135,2375.9,2375.8,9.765]
[1747631546814,4.20981729,2375.4,2375.3,1.37481326]
[1747631546987,4.20981729,2375.4,2375.3,11.13981326]
[1747631547182,4.20981729,2375.4,2375.3,10.3325698]
[1747631547919,4.20971531,2375.5,2375.3,10.3325698]
[1747631548212,1.1288,2376.0,2375.4,0.23555654]
[1747631548419,4.20964007,2375.5,2375.4,0.23555654]
[1747631548715,4.20964007,2375.5,2375.4,0.50394282]
[1747631550417,4.20964007,2375.5,2375.4,10.26894282]
[1747631551141,5.09402461,2375.5,2375.4,0.50394282]
[1747631551439,6.16975036,2375.5,2375.4,10.03338628]
[1747631551827,6.21222461,2375.5,2375.4,10.03338628]
[1747631552027,6.16975036,2375.5,2375.4,9.765]
[1747631553341,4.20964007,2375.5,2375.4,9.765]
[1747631553857,4.21017177,2375.2,2375.1,18.179]
[1747631554068,4.21017177,2375.2,2375.1,27.944]
[1747631554222,1.0676,2375.8,2375.1,27.944]
[1747631554409,4.21001629,2375.3,2375.1,27.944]
[1747631554609,4.21002167,2375.3,2375.2,1.1416]
[1747631554839,4.21002167,2375.3,2375.2,1.37747986]
[1747631555044,4.21002167,2375.3,2375.2,0.23587986]
[1747631555423,5.05200722,2375.3,2375.2,0.23587986]
[1747631555623,5.09448147,2375.3,2375.2,0.23587986]
[1747631555972,5.09448147,2375.3,2375.2,10.03474098]
[1747631555973,5.05200722,2375.3,2375.2,10.03474098]
[1747631557354,4.21002167,2375.3,2375.2,10.03474098]
[1747631557549,4.21002167,2375.3,2375.2,10.27055986]
[1747631557754,4.21002167,2375.3,2375.2,10.00181888]
[1747631558753,4.21002167,2375.3,2375.2,0.23581888]
[1747631558920,4.21002167,2375.3,2375.2,10.00281888]
[1747631559258,5.15012722,2375.3,2375.2,9.767]
[1747631559418,4.21017177,2375.2,2375.1,18.179]
[1747631559614,4.21017177,2375.2,2375.1,27.946]
[1747631559816,4.21017177,2375.2,2375.1,18.179]